bitfinex-derivatives/quotes_SOLF0:USTF0_20260207
["timestamp","ask_amount","ask_price","bid_price","bid_amount"]
[1770430551768,3.73615828,87.033,86.975,3.98673258]
[1770430551965,10.3465,87.046,86.975,3.98673258]
[1770430552261,3.73615828,87.047,86.994,3.98673258]
[1770430553365,3.73615828,87.061,87.008,3.98673258]
[1770430554064,3.73615828,87.061,87.014,10.3501]
[1770430554263,3.73615828,87.061,87.008,3.98673258]
[1770430554460,3.73615828,87.061,86.981,3.98673258]
[1770430554856,3.73615828,87.053,86.992,10.3527]
[1770430555855,3.73615828,87.048,86.992,10.3527]
[1770430556066,3.73615828,87.048,86.983,3.98673258]
[1770430556559,3.73615828,87.032,86.983,3.98673258]
[1770430556956,3.73615828,87.032,86.971,10.3552]
[1770430557765,3.73615828,87.03,86.971,10.3552]
[1770430558160,3.73615828,87.03,86.969,3.98673258]
[1770430558360,3.73615828,87.017,86.969,3.98673258]
[1770430559769,3.73615828,87.014,86.969,3.98673258]
[1770430560765,3.73615828,87.014,86.901,28.0016897]
[1770430560766,3.73615828,87.012,86.9,3.98673258]
[1770430561070,3.73615828,87.012,86.911,3.98673258]
[1770430562463,3.73615828,86.986,86.929,3.98673258]
[1770430562865,3.73615828,87.019,86.929,3.98673258]
[1770430563364,3.73615828,86.988,86.929,3.98673258]
[1770430564160,3.73615828,86.988,86.942,14.34543258]
[1770430564365,9.05569555,87.02,86.943,3.98673258]
[1770430564366,3.73615828,87.004,86.943,3.98673258]
[1770430564566,20.6891,87.062,86.943,3.98673258]
[1770430564567,3.73615828,87.039,86.943,3.98673258]
[1770430564864,3.73615828,87.039,86.951,3.98673258]
[1770430565770,3.938252,87.023,86.964,3.77099469]
[1770430566364,3.938252,87.019,86.964,3.77099469]
[1770430567061,3.938252,87.019,86.965,10.3559]
[1770430567259,3.938252,87.051,86.971,3.77099469]
[1770430568866,4.01096623,87.047,86.987,3.64322798]
[1770430569267,4.01096623,87.079,86.987,3.64322798]
[1770430570063,4.01096623,87.079,86.991,3.64322798]
[1770430570861,10.345,87.058,86.998,3.64322798]
[1770430571064,14.35596623,87.058,86.998,3.64322798]
[1770430571773,14.35596623,87.058,87.003,3.64322798]
[1770430573070,4.01096623,87.053,87.003,3.64322798]
[1770430573973,4.01096623,87.051,87.003,3.64322798]
[1770430574368,4.01096623,87.051,86.982,3.64322798]
[1770430575176,4.01096623,87.046,86.985,3.64322798]
[1770430575869,10.3468,87.043,86.985,3.64322798]
[1770430576176,4.01096623,87.042,86.985,3.64322798]
[1770430576674,14.35796623,87.041,86.985,3.64322798]
[1770430577572,14.35796623,87.041,86.987,3.64322798]
[1770430577970,10.3473,87.039,86.987,3.64322798]
[1770430578173,4.01096623,87.04,86.958,3.64322798]
[1770430578174,4.01096623,87.038,86.958,3.64322798]
[1770430579572,4.01096623,87.039,86.96,3.64322798]
[1770430580669,10.3487,87.026,86.964,10.356]
[1770430580876,14.35966623,87.026,86.965,3.64322798]
[1770430581375,10.3492,87.022,86.965,3.64322798]
[1770430581778,10.3492,87.022,86.967,3.64322798]
[1770430581973,4.01096623,87.025,86.967,3.64322798]
[1770430582181,10.348,87.033,86.971,3.64322798]
[1770430583375,4.01096623,87.039,86.984,3.64322798]
[1770430584681,4.01096623,87.039,86.995,3.64322798]
[1770430585971,4.01096623,87.052,86.997,3.64322798]
[1770430587586,4.01096623,87.052,87.0,3.64322798]
[1770430588780,4.01096623,87.071,87.022,3.64322798]
[1770430588985,4.01096623,87.099,87.022,3.64322798]
[1770430589787,4.01096623,87.091,87.036,10.3475]
[1770430590683,4.01096623,87.089,87.036,10.3475]
[1770430591789,4.01096623,87.089,87.038,10.3472]
[1770430592190,4.01096623,87.089,87.039,3.64322798]
[1770430592895,9.05569555,87.12,87.01,9.05569555]
[1770430592896,4.01096623,87.087,87.029,10.3483]
[1770430593593,4.01096623,87.084,87.029,10.3483]
[1770430593795,4.01096623,87.084,87.029,13.99152798]
[1770430593999,4.01096623,87.084,87.03,3.64322798]
[1770430594588,4.01096623,87.084,87.032,3.64322798]
[1770430595692,4.01096623,87.084,87.033,10.3479]
[1770430597506,4.01096623,87.084,87.042,3.9562267]
[1770430599593,10.342,87.083,87.029,3.9562267]
[1770430599798,3.85154532,87.082,87.028,14.3047267]
[1770430600194,3.85154532,87.082,87.041,10.347]
[1770430600401,3.85154532,87.082,87.042,3.9562267]
[1770430601208,3.85154532,87.093,87.043,10.3467]
[1770430602708,10.3409,87.092,87.043,10.3467]
[1770430602910,3.85154532,87.091,87.042,3.9562267]
[1770430603810,3.85154532,87.088,87.042,3.9562267]
[1770430604297,3.85154532,87.088,87.043,3.9562267]
[1770430605809,3.85154532,87.108,87.045,3.9562267]
[1770430606006,3.85154532,87.123,87.051,3.9562267]
[1770430607608,3.85154532,87.121,87.068,3.9562267]
[1770430608006,3.85154532,87.135,87.072,3.9562267]
[1770430608916,10.3386,87.112,87.072,3.9562267]
[1770430609108,3.85154532,87.114,87.072,3.9562267]
[1770430609810,3.85154532,87.114,87.074,3.9562267]
[1770430610804,3.85154532,87.114,87.077,10.3426]
[1770430612006,3.85154532,87.114,87.074,3.9562267]
[1770430613912,3.85154532,87.102,87.041,3.9562267]
[1770430614121,3.85154532,87.102,87.027,3.9562267]
[1770430614711,3.85154532,87.08,87.027,3.9562267]
[1770430616018,3.85154532,87.076,87.027,3.9562267]
[1770430616912,10.3439,87.067,87.027,3.9562267]
[1770430617621,14.19444532,87.076,87.027,3.9562267]
[1770430618321,3.85154532,87.076,87.029,3.9562267]
[1770430618710,10.3417,87.086,87.031,3.9562267]
[1770430619815,10.3417,87.086,87.033,3.9562267]
[1770430620720,10.3417,87.086,87.036,3.9562267]
[1770430621419,10.3417,87.086,87.039,3.9562267]
[1770430623825,34.48,87.143,87.01,9.0423091]
[1770430623826,3.85154532,87.124,87.051,3.9562267]
[1770430624521,3.85154532,87.124,87.083,3.9562267]
[1770430624721,3.85154532,87.167,87.083,3.9562267]
[1770430625024,3.85154532,87.143,87.087,3.9562267]
[1770430625421,3.85154532,87.16,87.102,3.9562267]
[1770430625629,3.85154532,87.16,87.089,3.76764876]
[1770430626124,3.85154532,87.16,87.101,3.76764876]
[1770430626719,3.85154532,87.16,87.116,10.338]
[1770430627025,3.85154532,87.16,87.114,3.76764876]
[1770430628521,10.3332,87.158,87.114,3.76764876]
[1770430628721,3.65232743,87.157,87.098,3.94172593]
[1770430629226,3.65232743,87.144,87.084,3.94172593]
[1770430630725,3.65232743,87.142,87.086,3.94172593]
[1770430632324,3.65232743,87.14,87.086,3.94172593]
[1770430633829,13.98772743,87.139,87.086,3.94172593]
[1770430634130,3.65232743,87.139,87.086,3.94172593]
[1770430635230,10.3343,87.149,87.088,3.94172593]
[1770430635430,3.65232743,87.148,87.088,3.94172593]
[1770430636530,13.98672743,87.147,87.093,3.94172593]
[1770430636919,10.3356,87.137,87.093,3.94172593]
[1770430637224,13.98792743,87.137,87.093,3.94172593]
[1770430638622,10.3362,87.132,87.093,3.94172593]
[1770430640632,3.65232743,87.136,87.093,3.94172593]
[1770430641733,10.3359,87.135,87.093,3.94172593]
[1770430642835,13.98822743,87.135,87.093,3.94172593]
[1770430643432,3.65232743,87.134,87.093,3.94172593]
[1770430643736,3.65232743,87.123,87.078,3.94172593]
[1770430644936,10.3375,87.121,87.078,3.94172593]
[1770430645134,3.65232743,87.12,87.078,3.94172593]
[1770430645435,10.3377,87.119,87.078,3.94172593]
[1770430647438,13.99002743,87.119,87.078,3.94172593]
[1770430648242,10.3377,87.119,87.078,3.94172593]
[1770430648428,10.3377,87.119,87.04,9.0423091]
[1770430648429,3.65232743,87.116,87.066,3.94172593]
[1770430649735,3.65232743,87.116,87.069,3.94172593]
[1770430651237,10.3383,87.114,87.069,3.94172593]
[1770430653542,10.3383,87.114,87.07,3.37580858]
[1770430653842,10.3383,87.114,87.071,3.94172593]
[1770430656742,10.3387,87.111,87.071,3.94172593]
[1770430656943,3.64751946,87.11,87.071,3.94172593]
[1770430667954,3.64751946,87.11,87.024,34.84318502]
[1770430667955,3.64751946,87.11,87.073,3.7780252]
[1770430668752,3.64751946,87.11,87.072,10.3432]
[1770430668753,3.64751946,87.121,87.08,3.7780252]
[1770430671762,3.64751946,87.121,87.081,10.3421]
[1770430672157,3.64751946,87.121,87.081,14.1201252]
[1770430672755,3.64751946,87.121,87.089,10.3412]
[1770430672964,3.64751946,87.121,87.081,3.7780252]
[1770430673870,3.64751946,87.121,87.082,3.7780252]
[1770430674759,3.64751946,87.121,87.073,10.3431]
[1770430675266,3.64751946,87.121,87.074,3.7780252]
[1770430676763,3.64751946,87.119,87.074,3.7780252]
[1770430677363,3.64751946,87.119,87.065,10.344]
[1770430677569,3.64751946,87.116,87.065,10.344]
[1770430678762,3.37575702,87.12,87.065,10.344]
[1770430678763,3.64751946,87.114,87.065,10.344]
[1770430679663,3.64751946,87.114,87.065,14.1220252]
[1770430680465,3.64751946,87.089,87.042,3.7780252]
[1770430680867,3.64751946,87.069,87.005,3.7780252]
[1770430681169,160.8022,87.123,87.005,3.7780252]
[1770430681170,3.64751946,87.059,87.006,10.3511]
[1770430681564,3.64751946,87.072,87.02,3.37575702]
[1770430681966,3.64751946,87.072,87.021,10.3493]
[1770430682161,3.64751946,87.072,87.021,14.1273252]
[1770430682565,3.37575702,87.07,87.021,3.7780252]
[1770430682858,3.64751946,87.069,87.021,3.7780252]
[1770430683059,3.64751946,87.069,86.948,161.1252]
[1770430683060,3.64751946,87.089,87.031,3.7780252]
[1770430683663,3.64751946,87.089,87.041,10.3469]
[1770430683866,3.64751946,87.089,87.04,3.37575702]
[1770430684061,3.64751946,87.089,87.031,3.7780252]
[1770430685270,3.64751946,87.079,87.022,10.3492]
[1770430685468,20.6694,87.145,87.019,3.7780252]
[1770430685469,3.64751946,87.069,87.019,3.7780252]
[1770430685672,3.64751946,87.069,87.01,3.37575702]
[1770430686066,3.64751946,87.069,87.011,3.95256241]
[1770430686663,10.3438,87.068,87.011,14.30296241]
[1770430686869,3.98550207,87.067,87.011,14.30296241]
[1770430687573,3.98550207,87.059,87.011,3.95256241]
[1770430688679,3.64678133,87.049,86.993,10.3527]
[1770430688873,3.64678133,87.049,86.946,34.84318502]
[1770430688874,3.64678133,87.029,86.971,3.99569181]
[1770430689675,3.64678133,87.029,86.974,10.3549]
[1770430689972,3.64678133,87.029,86.975,3.99569181]
[1770430690172,3.64678133,87.019,86.975,3.99569181]
[1770430690677,3.64678133,87.038,86.983,3.99569181]
[1770430691371,3.64678133,87.029,86.983,3.99569181]
[1770430691770,3.64678133,87.029,86.925,161.1668]
[1770430691771,3.64678133,87.009,86.953,3.99569181]
[1770430692174,3.64678133,87.009,86.96,3.37575702]
[1770430693183,3.64678133,87.023,86.971,3.99569181]
[1770430693479,3.64678133,87.009,86.951,3.99569181]
[1770430694475,3.64678133,87.009,86.963,3.99569181]
[1770430694876,3.64678133,87.009,86.97,3.37575702]
[1770430695378,3.64678133,87.025,86.972,3.99569181]
[1770430695681,3.64678133,87.025,86.981,3.99569181]
[1770430696672,3.64678133,87.025,86.982,10.3539]
[1770430697173,3.64678133,87.049,86.991,3.99569181]
[1770430698773,3.64678133,87.049,86.999,10.3519]
[1770430699385,3.64678133,87.045,86.991,3.99569181]
[1770430699585,3.64678133,87.039,86.991,3.99569181]
[1770430700578,3.64678133,87.039,86.989,10.353]
[1770430701177,3.37575702,87.04,86.989,10.353]
[1770430701178,3.64678133,87.037,86.989,10.353]
[1770430701482,3.64678133,87.029,86.98,10.3542]
[1770430702881,3.64678133,87.019,86.978,3.99569181]
[1770430703086,3.64678133,87.019,86.97,10.3554]
[1770430703785,3.64678133,87.009,86.962,3.99569181]
[1770430704888,3.64678133,87.009,86.95,3.37575702]
[1770430704889,3.64678133,86.999,86.95,3.99569181]
[1770430705886,3.64678133,86.999,86.951,3.99569181]
[1770430708385,3.64678133,86.997,86.951,3.99569181]
[1770430708579,3.64678133,86.997,86.94,3.37575702]
[1770430708580,3.64678133,86.997,86.941,3.99569181]
[1770430709790,3.64678133,86.993,86.941,3.99569181]
[1770430711683,3.64678133,86.993,86.951,3.99569181]
[1770430711888,3.64678133,87.008,86.961,3.99569181]
[1770430716597,3.64678133,87.008,86.963,10.3562]
[1770430716899,3.64678133,87.008,86.963,14.31714649]
[1770430719692,3.64678133,87.008,86.963,3.96094649]
[1770430719900,3.80132498,87.006,86.963,3.96094649]
[1770430720999,3.80132498,87.033,86.971,3.96094649]
[1770430721497,3.37575702,87.04,86.983,3.96094649]
[1770430721703,3.80132498,87.059,87.001,3.96094649]
[1770430722300,3.80132498,87.049,87.001,3.96094649]
[1770430722495,3.80132498,87.041,87.001,3.96094649]
[1770430722808,3.80132498,87.009,86.958,3.96094649]
[1770430723603,3.80132498,87.009,86.96,3.37575702]
[1770430723806,10.3502,87.014,86.971,3.96094649]
[1770430724301,3.80132498,87.021,86.971,3.96094649]
[1770430724714,3.80132498,87.021,86.909,34.84318502]
[1770430724715,3.80132498,87.0,86.958,3.96094649]
[1770430726212,10.352,86.999,86.958,3.96094649]
[1770430728203,10.3533,86.988,86.958,3.96094649]
[1770430730408,3.80132498,87.011,86.971,3.96094649]
[1770430731416,3.80132498,87.024,86.981,3.96094649]
[1770430734827,14.15042498,87.024,86.981,3.96094649]
[1770430737832,3.80132498,87.024,86.981,3.96094649]
[1770430740333,3.80132498,87.039,86.991,3.96094649]
[1770430740533,3.80132498,87.039,87.0,3.38328392]
[1770430740838,3.80132498,87.039,87.001,3.96094649]
[1770430741236,3.80132498,87.067,87.011,3.96094649]
[1770430741445,3.80132498,87.067,86.965,161.0929]
[1770430741446,3.80132498,87.067,87.021,3.96094649]
[1770430741934,3.80132498,87.092,87.041,3.96094649]
[1770430742238,3.80132498,87.092,87.051,3.96094649]
[1770430743232,10.3378,87.119,87.061,3.96094649]
[1770430743437,3.80132498,87.122,87.071,3.96094649]
[1770430746837,4.03486482,87.136,87.075,3.87353359]
[1770430747027,4.03486482,87.15,87.081,3.87353359]
[1770430747435,4.03486482,87.15,87.101,3.87353359]
[1770430747936,4.03486482,87.15,87.084,3.87941952]
[1770430748638,4.03486482,87.15,87.098,14.21951952]
[1770430749633,4.03486482,87.15,87.099,3.87941952]
[1770430751245,3.85328413,87.148,87.099,3.87941952]
[1770430755444,3.85328413,87.146,87.099,3.87941952]
[1770430757148,3.85328413,87.168,87.101,3.87941952]
[1770430758250,3.85328413,87.154,87.101,3.87941952]
[1770430759048,3.85328413,87.143,87.101,3.87941952]
[1770430760253,3.85328413,87.141,87.101,3.87941952]
[1770430761054,3.85328413,87.139,87.101,3.87941952]
[1770430764954,3.85328413,87.136,87.088,3.87941952]
[1770430766155,10.3345,87.147,87.091,3.87941952]
[1770430766458,10.3345,87.147,87.101,3.87941952]
[1770430767059,14.18778413,87.147,87.101,3.87941952]
[1770430767451,3.85328413,87.138,87.101,3.87941952]
[1770430767656,3.85328413,87.138,87.083,3.87941952]
[1770430768762,10.3359,87.134,87.083,3.87941952]
[1770430771956,10.3362,87.132,87.083,3.87941952]
[1770430772660,3.85328413,87.131,87.083,3.87941952]
[1770430774862,3.85328413,87.157,87.101,3.87941952]
[1770430775165,3.85328413,87.157,87.111,3.87941952]
[1770430775366,3.85328413,87.157,87.113,3.87941952]
[1770430775564,3.85328413,87.157,87.121,3.6724783]
[1770430775761,10.3311,87.175,87.121,3.6724783]
[1770430775964,3.37442094,87.18,87.123,10.3371]
[1770430776365,3.69086688,87.174,87.124,3.6724783]
[1770430776864,3.69086688,87.172,87.124,3.6724783]
[1770430777165,3.69086688,87.159,87.11,3.6724783]
[1770430777763,3.69086688,87.159,87.115,3.6724783]
[1770430777967,1.99710191,87.208,87.121,3.6724783]
[1770430777968,3.69086688,87.179,87.121,3.6724783]
[1770430778764,3.69086688,87.179,87.127,3.6724783]
[1770430779667,3.69086688,87.179,87.13,3.37442094]
[1770430779869,3.69086688,87.179,87.131,3.6724783]
[1770430780367,20.6479,87.236,87.042,34.69694818]
[1770430780368,3.69086688,87.199,87.141,3.6724783]
[1770430780561,3.37442094,87.18,87.141,3.6724783]
[1770430780764,3.69086688,87.194,87.141,3.6724783]
[1770430780971,3.69086688,87.194,87.151,3.6724783]
[1770430782171,3.69086688,87.194,87.153,3.6724783]
[1770430782472,3.69086688,87.209,87.153,3.6724783]
[1770430783266,3.69086688,87.209,87.164,3.6724783]
[1770430784174,3.69086688,87.199,87.151,3.6724783]
[1770430785178,3.69086688,87.199,87.14,3.37442094]
[1770430785179,3.69086688,87.199,87.153,3.6724783]
[1770430785973,3.69086688,87.212,87.161,3.6724783]
[1770430786172,3.69086688,87.228,87.171,3.6724783]
[1770430786570,3.69086688,87.228,87.175,3.6724783]
[1770430787777,3.69086688,87.228,87.177,3.6724783]
[1770430788079,9.01912887,87.26,87.177,3.6724783]
[1770430788080,3.69086688,87.241,87.177,3.6724783]
[1770430788492,1.99577332,87.278,87.198,3.6724783]
[1770430788493,3.69086688,87.255,87.198,3.6724783]
[1770430789272,3.69086688,87.255,87.18,3.6724783]
[1770430790171,3.69086688,87.228,87.18,3.6724783]
[1770430790580,3.69086688,87.225,87.18,3.6724783]
[1770430790987,3.69086688,87.225,87.152,10.3337]
[1770430791179,3.69086688,87.202,87.135,3.6724783]
[1770430791778,3.69086688,87.202,87.082,160.876]
[1770430791779,3.69086688,87.182,87.102,3.6724783]
[1770430792071,3.69086688,87.182,87.111,3.6724783]
[1770430792785,3.69086688,87.197,87.111,3.6724783]
[1770430793087,3.69086688,87.197,87.136,3.6724783]
[1770430794480,3.69086688,87.213,87.14,3.6724783]
[1770430795678,3.69086688,87.211,87.14,3.6724783]
[1770430796284,3.69086688,87.206,87.14,3.6724783]
[1770430796873,3.69086688,87.206,87.044,20.6932]
[1770430796874,3.69086688,87.182,87.125,3.6724783]
[1770430797483,3.69086688,87.174,87.125,3.6724783]
[1770430799383,3.69086688,87.171,87.106,3.6724783]
[1770430799991,3.69086688,87.154,87.106,3.6724783]
[1770430800187,3.69086688,87.154,87.092,3.6724783]
[1770430800989,3.69086688,87.152,87.092,3.6724783]
[1770430801285,9.03266467,87.17,87.071,3.6724783]
[1770430801286,3.69086688,87.149,87.071,3.6724783]
[1770430802595,3.69086688,87.149,87.075,3.6724783]
[1770430803395,3.69086688,87.149,87.088,3.6724783]
[1770430805591,3.69086688,87.149,87.103,14.21507268]
[1770430806096,3.69086688,87.149,87.071,3.87557268]
[1770430806295,9.03266467,87.17,87.084,3.87557268]
[1770430806296,3.80779311,87.145,87.084,3.87557268]
[1770430807796,3.80779311,87.142,87.084,3.87557268]
[1770430809495,3.80779311,87.142,87.086,3.88587696]
[1770430810787,3.80779311,87.142,87.088,10.3413]
[1770430811099,3.80779311,87.142,87.088,14.22717696]
[1770430811495,3.80779311,87.142,87.092,3.88587696]
[1770430812798,3.80779311,87.142,87.094,3.88587696]
[1770430813399,3.80779311,87.142,87.096,3.88587696]
[1770430814796,3.80779311,87.142,87.099,3.88587696]
[1770430815503,3.97974393,87.181,87.111,3.88587696]
[1770430816703,3.97974393,87.181,87.13,10.3363]
[1770430817905,3.97974393,87.181,87.13,14.22217696]
[1770430819111,3.97974393,87.181,87.131,3.88587696]
[1770430819306,3.97974393,87.195,87.136,3.88587696]
[1770430819814,3.97974393,87.219,87.136,3.88587696]
[1770430820712,9.03266467,87.24,87.159,10.3329]
[1770430820713,3.97974393,87.215,87.159,10.3329]
[1770430820906,3.97974393,87.215,87.16,3.88587696]
[1770430821608,3.97974393,87.211,87.16,3.88587696]
[1770430823814,3.97974393,87.209,87.138,10.3354]
[1770430824719,3.97974393,87.193,87.138,10.3354]
[1770430825515,3.97974393,87.186,87.13,3.88587696]
[1770430825718,3.97974393,87.2,87.13,3.88587696]
[1770430826706,9.03266467,87.22,87.11,9.03266467]
[1770430826707,3.97974393,87.196,87.133,3.88587696]
[1770430827618,3.97974393,87.181,87.133,3.88587696]
[1770430828014,10.3303,87.182,87.133,3.88587696]
[1770430828216,3.97974393,87.195,87.133,3.88587696]
[1770430829620,3.97974393,87.195,87.084,20.6835]
[1770430829621,3.97974393,87.192,87.119,3.88587696]
[1770430830418,3.97974393,87.17,87.119,3.88587696]
[1770430830822,3.97974393,87.199,87.119,3.88587696]
[1770430831720,14.31004393,87.182,87.119,3.88587696]
[1770430831919,3.97974393,87.181,87.119,3.88587696]
[1770430832315,3.97974393,87.181,87.123,3.88587696]
[1770430833123,3.97974393,87.219,87.123,3.88587696]
[1770430833328,3.97974393,87.219,87.131,3.88587696]
[1770430834629,3.97974393,87.212,87.151,3.88587696]
[1770430836028,3.88623572,87.209,87.151,3.88587696]
[1770430837833,3.88623572,87.203,87.151,3.88587696]
[1770430838935,3.88623572,87.203,87.13,9.03266467]
[1770430838936,3.88623572,87.203,87.157,3.82092868]
[1770430840127,3.88623572,87.203,87.16,10.3328]
[1770430840930,3.88623572,87.203,87.17,10.3316]
[1770430841331,3.88623572,87.216,87.17,10.3316]
[1770430841932,3.88623572,87.216,87.174,14.15202868]
[1770430842129,3.88623572,87.232,87.174,3.82092868]
[1770430843836,3.88623572,87.232,87.182,10.3301]
[1770430844931,3.88623572,87.226,87.161,3.82092868]
[1770430845724,3.88623572,87.215,87.161,3.82092868]
[1770430846732,10.3268,87.211,87.161,3.82092868]
[1770430847134,14.21303572,87.211,87.161,3.82092868]
[1770430848043,3.88623572,87.207,87.161,3.82092868]
[1770430849744,3.88623572,87.203,87.161,3.82092868]
[1770430851748,3.88623572,87.201,87.161,3.82092868]
[1770430851940,3.88623572,87.201,87.14,3.82092868]
[1770430852241,3.88623572,87.183,87.14,3.82092868]
[1770430853547,3.37159859,87.18,87.14,3.82092868]
[1770430853747,13.70209859,87.18,87.14,3.82092868]
[1770430855348,17.58833431,87.18,87.14,3.82092868]
[1770430857243,14.21673572,87.18,87.14,3.82092868]
[1770430858150,10.3311,87.175,87.14,3.82092868]
[1770430861148,10.3315,87.171,87.121,3.82092868]
[1770430861549,10.3315,87.171,87.124,3.82092868]
[1770430862059,3.88623572,87.159,87.109,27.74992812]
[1770430862242,3.88623572,87.159,87.107,3.82092868]
[1770430862447,3.88623572,87.159,87.11,7.19201754]
[1770430862648,3.88623572,87.159,87.111,3.82092868]
[1770430863154,14.10988186,87.242,87.066,20.688]
[1770430863155,3.88623572,87.188,87.131,3.82092868]
[1770430863549,3.88623572,87.217,87.16,3.37108886]
[1770430863749,3.88623572,87.217,87.151,3.82092868]
[1770430863750,3.88623572,87.209,87.151,3.82092868]
[1770430864053,3.88623572,87.199,87.151,3.82092868]
[1770430864443,3.88623572,87.198,87.151,3.82092868]
[1770430864651,3.88623572,87.21,87.151,3.82092868]
[1770430864856,3.88623572,87.21,87.16,3.37108886]
[1770430866647,3.83267547,87.207,87.151,3.82092868]
[1770430866958,20.6406,87.266,87.111,34.69694818]
[1770430866959,3.83267547,87.179,87.121,3.90746901]
[1770430867357,3.83267547,87.169,87.12,10.3375]
[1770430868459,3.83267547,87.169,87.12,17.65082993]
[1770430870758,3.83267547,87.169,87.103,27.74992812]
[1770430870759,4.00327003,87.2,87.14,3.37108886]
[1770430870950,4.00327003,87.2,87.151,3.94224107]
[1770430872560,4.00327003,87.231,87.181,3.94224107]
[1770430874665,4.00327003,87.247,87.182,3.94224107]
[1770430875374,4.00327003,87.245,87.184,3.94224107]
[1770430875977,4.00327003,87.259,87.189,3.94224107]
[1770430877768,4.00327003,87.253,87.192,3.94224107]
[1770430878769,10.3226,87.247,87.192,3.94224107]
[1770430878972,4.00327003,87.246,87.192,3.94224107]
[1770430879171,4.00327003,87.246,87.178,3.94224107]
[1770430879769,4.00327003,87.23,87.178,3.94224107]
[1770430879976,4.00327003,87.23,87.164,3.94224107]
[1770430881678,4.00327003,87.219,87.164,3.94224107]
[1770430882077,4.00327003,87.219,87.12,27.74992812]
[1770430882078,4.00327003,87.219,87.146,3.94224107]
[1770430882766,10.3274,87.206,87.146,3.94224107]
[1770430882971,4.00327003,87.205,87.146,3.94224107]
[1770430883772,10.3283,87.199,87.146,3.94224107]
[1770430883973,4.00327003,87.239,87.146,3.94224107]
[1770430885478,4.00327003,87.214,87.13,3.94224107]
[1770430886280,4.00327003,87.188,87.13,3.94224107]
[1770430887182,10.332,87.167,87.13,3.94224107]
[1770430891675,10.332,87.167,87.1,36.76853516]
[1770430891881,4.00327003,87.166,87.101,3.94224107]
[1770430893082,10.3354,87.139,87.101,3.94224107]
[1770430895970,10.3343,87.148,87.101,3.94224107]
[1770430896175,34.47,87.195,87.101,3.94224107]
[1770430896176,3.86259322,87.214,87.101,3.94224107]
[1770430896481,3.86259322,87.199,87.101,3.94224107]
[1770430896680,3.86259322,87.183,87.111,4.00221837]
[1770430896877,3.86259322,87.183,87.115,4.00221837]
[1770430897384,3.86259322,87.183,87.131,4.00221837]
[1770430898580,3.86259322,87.183,87.091,34.69694818]
[1770430898581,3.86259322,87.183,87.141,4.00221837]
[1770430899877,3.86259322,87.197,87.141,4.00221837]
[1770430900080,3.86259322,87.212,87.141,4.00221837]
[1770430900784,3.86259322,87.212,87.147,4.00221837]
[1770430901176,3.86259322,87.212,87.126,4.00221837]
[1770430901581,3.86259322,87.205,87.129,4.00221837]
[1770430902788,3.86259322,87.2,87.13,10.3363]
[1770430903790,3.86259322,87.198,87.13,10.3363]
[1770430904088,3.86259322,87.198,87.13,14.33851837]
[1770430905384,3.86259322,87.198,87.137,10.3355]
[1770430906186,3.86259322,87.198,87.142,4.00221837]
[1770430907695,3.86259322,87.198,87.143,10.3348]
[1770430908192,3.86259322,87.188,87.13,10.3363]
[1770430908697,3.86259322,87.185,87.113,4.00221837]
[1770430909284,3.86259322,87.183,87.113,4.00221837]
[1770430910394,10.3303,87.182,87.113,4.00221837]
[1770430910594,3.86259322,87.181,87.113,4.00221837]
[1770430911594,3.86259322,87.178,87.113,4.00221837]
[1770430913396,3.86259322,87.174,87.113,4.00221837]
[1770430914890,10.3314,87.172,87.113,4.00221837]
[1770430915088,14.19399322,87.172,87.113,4.00221837]
[1770430915396,3.86259322,87.171,87.113,4.00221837]
[1770430915696,3.86259322,87.171,87.117,4.00221837]
[1770430916794,3.86259322,87.171,87.124,4.00221837]
[1770430918494,10.3292,87.191,87.126,4.00221837]
[1770430918695,3.86259322,87.199,87.08,20.6846]
[1770430918696,3.86259322,87.199,87.131,4.00221837]
[1770430919693,3.86259322,87.199,87.143,4.00221837]
[1770430920800,3.86259322,87.199,87.13,4.00221837]
[1770430921002,3.86259322,87.199,87.091,34.69694818]
[1770430921003,3.86259322,87.199,87.114,4.00221837]
[1770430921195,3.86259322,87.187,87.123,10.3372]
[1770430921500,3.86259322,87.179,87.124,4.00221837]
[1770430921695,3.86259322,87.179,87.131,4.00221837]
[1770430922797,3.86259322,87.179,87.141,10.3349]
[1770430923507,3.86259322,87.179,87.131,4.00221837]
[1770430923508,3.86259322,87.179,87.133,10.336]
[1770430923893,3.86259322,87.179,87.127,4.00221837]
[1770430924896,3.86259322,87.179,87.142,10.3349]
[1770430925095,3.86259322,87.21,87.143,4.00221837]
[1770430925299,3.86259322,87.21,87.171,10.3315]
[1770430925603,3.84907498,87.209,87.171,10.3315]
[1770430927201,3.84907498,87.199,87.16,10.3328]
[1770430927605,3.84907498,87.199,87.151,4.00221837]
[1770430931802,3.84907498,87.199,87.153,3.69344865]
[1770430936404,3.84907498,87.199,87.155,3.69344865]
[1770430937703,3.84907498,87.199,87.156,10.3333]
[1770430939315,3.84907498,87.199,87.157,3.69344865]
[1770430940616,3.64860317,87.196,87.157,3.69344865]